Cogmind - Beta 13 @@@ ROGUE MODE // 2024.04.06 @ 15:07:09 Player: Grewsome Result: Self-destructed Performance ------------- Evolutions (2) 1000 Regions Visited (5) 1000 Robots Destroyed (4) 20 Value Destroyed (65) 65 Prototype IDs (0) 0 Alien Tech Used (0) 0 Bonus (0) 0 TOTAL SCORE: 2085 Bonus ------- None Cogmind --------- Core Integrity 409/550 Matter 194/300 Energy 250/250 System Corruption 0% Temperature Cool (0) Movement Flying (29) Location -8/Storage Parts ------- > --- POWER (1) -------- Ion Engine > --- PROPULSION (4) --- VTOL Module VTOL Module VTOL Module > --- UTILITY (4) ------ Machine Analyzer Advanced Targeting Computer > --- WEAPON (2) ------- Assault Rifle > --- INVENTORY (5) ---- Signal Interpreter ECM Suite Improved Trap Extractor (0/6) Peak State ------------ > --- POWER ------------ Light Ion Engine > --- PROPULSION ------- VTOL Module VTOL Module VTOL Module VTOL Module > --- UTILITY ---------- Machine Analyzer Advanced Targeting Computer ECM Suite Improved Trap Extractor > --- WEAPON ----------- Assault Rifle Mining Laser > --- INVENTORY -------- Signal Interpreter Terrain Scan Processor ECM Suite Datajack [Rating: 22] Favorites ----------- Power Light Ion Engine Engine Light Ion Engine Propulsion VTOL Module Wheel Wheel Flight Unit VTOL Module Utility ECM Suite Device ECM Suite Storage Compact Battery Processor Advanced Targeting Computer Weapon Mining Laser Ballistic Gun Assault Rifle Special Weapon Mining Laser Special Melee Weapon Datajack Build | -11 -10 -9 -9 -8 -8 ------- Run | Yrd Mat Mat Min Mat Sto Slots Evolved 4 | . . 2 . 2 . Power . | . . . . . . Propulsion 2 | . . 1 . 1 . Utility 2 | . . 1 . 1 . Weapon . | . . . . . . Parts Attached 19 | 4 5 3 . 4 3 Power 2 | 1 . . . 1 . Engine 2 | 1 . . . 1 . Core . | . . . . . . Reactor . | . . . . . . Propulsion 6 | 2 2 1 . 1 . Treads . | . . . . . . Leg . | . . . . . . Wheel 2 | 2 . . . . . Hover . | . . . . . . Flight 4 | . 2 1 . 1 . Utility 7 | . 2 2 . 2 1 Device 3 | . 1 1 . 1 . Storage 1 | . . . . . 1 Processor 3 | . 1 1 . 1 . Hackware . | . . . . . . Protection . | . . . . . . Artifact . | . . . . . . Weapon 4 | 1 1 . . . 2 Energy Gun . | . . . . . . Energy Cannon . | . . . . . . Ballistic Gun 2 | 1 . . . . 1 Ballistic Cannon . | . . . . . . Launcher . | . . . . . . Special Weapon 1 | . 1 . . . . Impact Weapon . | . . . . . . Slashing Weapon . | . . . . . . Piercing Weapon . | . . . . . . Special Melee Weapon 1 | . . . . . 1 Unidentified Prototypes . | . . . . . . Parts Lost 5 | . . . . . 5 Power . | . . . . . . Propulsion 1 | . . . . . 1 Utility 2 | . . . . . 2 Weapon 2 | . . . . . 2 Highest Loss Streak 5 | . . . . . 5 To Critical Strikes . | . . . . . . Average Slot Usage (%) 92 | . 74 96 100 97 83 Engine 10 | . 14 11 11 9 9 Flight 33 | . 26 33 33 36 32 Device 15 | . 7 18 22 18 7 Processor 13 | . 3 11 11 17 18 Ballistic Gun 8 | . 14 11 11 6 2 Special Weapon 9 | . 7 11 11 9 6 Naked Turns . | . . . . . . Heaviest Build 13 | 5 8 10 10 13 10 Greatest Support 26 | 26 26 12 12 16 12 Greatest Overweight (x) 1 | 1 1 . . . . Average Overweight (x) . | . . . . . . Largest Inventory Capacity 5 | 5 5 5 5 5 5 Average Capacity 5 | 5 5 5 5 5 5 Most Carried 5 | 2 4 5 4 5 5 Average Carried 3 | . 2 3 4 4 4 Final Capacity 5 | 5 5 5 5 5 5 Final Carried 5 | . 4 4 4 5 3 Class Distribution -------------------- 93% | Sprinter 6% | Mutant Dominant Class ---------------- Sprinter | -10/Materials Sprinter | -9/Materials Sprinter | -9/Mines Sprinter | -8/Materials Sprinter | -8/Storage Resources | -11 -10 -9 -9 -8 -8 ----------- Run | Yrd Mat Mat Min Mat Sto Matter Collected 316 | 218 72 . 26 . . Remotely . | . . . . . . Salvage Created 174 | . 72 48 . . 54 Parts 12 | . 7 2 . . 3 Haulers Intercepted 2 | . 1 1 . . . Recyclers Shooed . | . . . . . . Parts Field Recycled . | . . . . . . Retrieved Matter . | . . . . . . Parts Self-Destructed . | . . . . . . Prevented . | . . . . . . Kills | -11 -10 -9 -9 -8 -8 ------- Run | Yrd Mat Mat Min Mat Sto Combat Hostiles Destroyed 1 | . . . . . 1 Guns 1 | . . . . . 1 Classes Destroyed 3 | . 2 . . . 1 Hauler 2 | . 1 1 . . . Operator 1 | . 1 . . . . Sentry 1 | . . . . . 1 Best Kill Streak 1 | . 1 1 . . 1 Combat Bots Only 1 | . . . . . 1 Max Kills in Single Turn 1 | . 1 1 . . 1 Gunslinging . | . . . . . . Exploded . | . . . . . . Melee . | . . . . . . Uniques/NPCs Destroyed . | . . . . . . Combat | -11 -10 -9 -9 -8 -8 -------- Run | Yrd Mat Mat Min Mat Sto Hostile Shots Fired 72 | . . 4 3 42 23 Missed 41 | . . 1 2 28 10 Damage Taken 426 | . . 22 10 179 215 Core 157 | . . 6 10 92 49 Absorbed by Shields . | . . . . . . Core Remaining (%) 98 | 100 100 . 96 . . Volleys Fired 20 | . 7 5 . 1 7 Largest 1 | . 1 1 . 1 1 Hottest 100 | . 20 20 . 100 20 Shots Fired 20 | . 7 5 . 1 7 Gun 19 | . 7 5 . . 7 Cannon . | . . . . . . Launcher . | . . . . . . Special 1 | . . . . 1 . Kinetic 19 | . 7 5 . . 7 Thermal 1 | . . . . 1 . Explosive . | . . . . . . Electromagnetic . | . . . . . . Robot Hit Streak 9 | . 6 9 . . 7 Robot Miss Streak 1 | . . 1 . . 1 Penetration Max . | . . . . . . Secondary Targets . | . . . . . . Shots Hit Robots 17 | . 6 4 . . 7 Core Hits 9 | . 4 2 . . 3 Critical Kills . | . . . . . . Critical Parts Destroyed . | . . . . . . Critical Strikes . | . . . . . . Melee Attacks 2 | . . . . . 2 Impact . | . . . . . . Slashing . | . . . . . . Piercing . | . . . . . . Sneak Attacks . | . . . . . . Combat Hostiles . | . . . . . . Follow-up Attacks . | . . . . . . Damage Inflicted 204 | . 79 50 . . 75 Guns 204 | . 79 50 . . 75 Cannons . | . . . . . . Explosions . | . . . . . . Melee . | . . . . . . Ramming . | . . . . . . Kinetic 204 | . 79 50 . . 75 Thermal . | . . . . . . Explosive . | . . . . . . Electromagnetic . | . . . . . . Impact . | . . . . . . Slashing . | . . . . . . Piercing . | . . . . . . Highest Corruption . | . . . . . . Average Corruption . | . . . . . . Corruption Purged . | . . . . . . Corruption Blocked . | . . . . . . Overload Shots . | . . . . . . Overflow Damage . | . . . . . . Projectiles . | . . . . . . Explosions . | . . . . . . Melee . | . . . . . . Knockbacks . | . . . . . . Impact . | . . . . . . Kinetic . | . . . . . . Secondary . | . . . . . . Self-Inflicted Damage . | . . . . . . Shots . | . . . . . . Rammed . | . . . . . . Targets Rammed . | . . . . . . Kicked . | . . . . . . Crushed . | . . . . . . Highest Temperature 30 | . . . . 30 7 Average Temperature 18 | . . . . 20 7 Received Heat Transfer 141 | . . . 6 45 90 Siege Activations . | . . . . . . Robots Corrupted . | . . . . . . Combat Hostiles . | . . . . . . Parts Fried . | . . . . . . Impact Corruptions . | . . . . . . Robots Melted . | . . . . . . Combat Hostiles . | . . . . . . Parts Melted . | . . . . . . Heat Transferred . | . . . . . . Parts Sabotaged . | . . . . . . Parts Stolen . | . . . . . . Parts Stripped . | . . . . . . Power Chain Reactions . | . . . . . . Alert | -11 -10 -9 -9 -8 -8 ------- Run | Yrd Mat Mat Min Mat Sto Peak Influence 131 | . 44 55 27 131 105 Initial 55 | . . 18 27 10 55 Average 42 | . 14 33 27 57 78 Maximum Alert Level . | . . . . . . Low Security (%) 100 | 100 100 100 100 100 100 Level 1 . | . . . . . . Level 2 . | . . . . . . Level 3 . | . . . . . . Level 4 . | . . . . . . Level 5 . | . . . . . . High Security . | . . . . . . Max Security . | . . . . . . Squads Dispatched 3 | . . . . 2 1 Investigation 1 | . . . . 1 . Extermination . | . . . . . . Reinforcement 2 | . . . . 1 1 Assault . | . . . . . . Garrison . | . . . . . . Intercept . | . . . . . . Searches Triggered . | . . . . . . Construction Impeded . | . . . . . . Haulers Reinforced . | . . . . . . Active Scanning Responses . | . . . . . . Cargo Convoy Interrupts . | . . . . . . Stealth | -11 -10 -9 -9 -8 -8 --------- Run | Yrd Mat Mat Min Mat Sto Distress Signals 1 | . . . . 1 . Communications Jammed . | . . . . . . Distress Signals . | . . . . . . Times Spotted 64 | . 5 12 8 27 12 Peak Tracking Total 12 | . 4 10 7 12 10 Tactical Retreats 12 | . 2 2 1 5 2 Traps | -11 -10 -9 -9 -8 -8 ------- Run | Yrd Mat Mat Min Mat Sto Traps Triggered 1 | . . . . 1 . Indirectly . | . . . . . . Trap Hack Attempts . | . . . . . . Triggered . | . . . . . . Disarmed . | . . . . . . Reprogrammed . | . . . . . . Reused . | . . . . . . Traps Extracted . | . . . . . . Installed . | . . . . . . Triggered . | . . . . . . Machines | -11 -10 -9 -9 -8 -8 ---------- Run | Yrd Mat Mat Min Mat Sto Machines Disabled . | . . . . . . Max in Single Turn . | . . . . . . Machines Repaired . | . . . . . . Machines Dismantled . | . . . . . . Machines Sabotaged . | . . . . . . Overloaded Fab Kills . | . . . . . . Hacking | -11 -10 -9 -9 -8 -8 --------- Run | Yrd Mat Mat Min Mat Sto Machines Accessed 4 | . 2 1 . . 1 Terminals 4 | . 2 1 . . 1 Fabricators . | . . . . . . Repair Stations . | . . . . . . Recycling Units . | . . . . . . Scanalyzers . | . . . . . . Garrison Access . | . . . . . . Total Hacks 7 | . 4 2 . . 1 Successful 4 | . 2 1 . . 1 Failed 3 | . 2 1 . . . Catastrophic . | . . . . . . Database Lockouts . | . . . . . . Manual . | . . . . . . Terminals 7 | . 4 2 . . 1 Fabricators . | . . . . . . Repair Stations . | . . . . . . Recycling Units . | . . . . . . Scanalyzers . | . . . . . . Garrison Access . | . . . . . . Terminal Hacks 4 | . 2 1 . . 1 Record 3 | . 2 1 . . . Robot Analysis 1 | . . . . . 1 Fabricator Hacks . | . . . . . . Repair Station Hacks . | . . . . . . Recycling Unit Hacks . | . . . . . . Scanalyzer . | . . . . . . Garrison Access Hacks . | . . . . . . Unauthorized Hacks . | . . . . . . Terminals . | . . . . . . Fabricators . | . . . . . . Repair Stations . | . . . . . . Recycling Units . | . . . . . . Scanalyzers . | . . . . . . Garrison Access . | . . . . . . Data Cores Recovered 1 | . 1 . . . . Used . | . . . . . . Hacking Detections 2 | . 1 1 . . . Full Trace Events . | . . . . . . Feedback Events . | . . . . . . Feedback Blocked . | . . . . . . Robot Schematics Acquired . | . . . . . . Robots Built . | . . . . . . Authchips . | . . . . . . Time . | . . . . . . Total Robot Build Rating . | . . . . . . Part Schematics Acquired . | . . . . . . Parts Built . | . . . . . . Authchips . | . . . . . . Time . | . . . . . . Total Part Build Rating . | . . . . . . Parts Repaired . | . . . . . . Time . | . . . . . . Parts Recycled . | . . . . . . Recycled Matter . | . . . . . . Retrieved Matter . | . . . . . . Retrieved Components . | . . . . . . Parts Scanalyzed . | . . . . . . Part Schematics Acquired . | . . . . . . Parts Damaged . | . . . . . . Bothacking | -11 -10 -9 -9 -8 -8 ------------ Run | Yrd Mat Mat Min Mat Sto Used RIF Installer . | . . . . . . Robots Hacked 1 | . . . . . 1 Non-combat . | . . . . . . Combat 1 | . . . . . 1 Robot Hacks Applied 1 | . . . . . 1 parse_system 1 | . . . . . 1 Relay Couplers Released . | . . . . . . Fabnet Peak Effective % . | . . . . . . Robots Rewired . | . . . . . . Allies Hacked . | . . . . . . Hacks Repelled . | . . . . . . Allies | -11 -10 -9 -9 -8 -8 -------- Run | Yrd Mat Mat Min Mat Sto Total Allies . | . . . . . . Largest Group . | . . . . . . Highest-Rated Group . | . . . . . . Highest-Rated Ally . | . . . . . . Total Orders . | . . . . . . Ally Attacks . | . . . . . . Total Damage . | . . . . . . Kills . | . . . . . . Allies Corrupted . | . . . . . . Allies Melted . | . . . . . . Intel | -11 -10 -9 -9 -8 -8 ------- Run | Yrd Mat Mat Min Mat Sto Robot Analysis Total 1 | . . . . . 1 Derelict Logs Recovered 1 | . . . 1 . . Drone Launches . | . . . . . . Drone Recoveries . | . . . . . . Exploration | -11 -10 -9 -9 -8 -8 ------------- Run | Yrd Mat Mat Min Mat Sto Turns Passed 630 | 39 98 112 62 254 65 Spaces Moved 1151 | 37 199 163 201 403 148 Core 10 | 9 1 . . . . Treads . | . . . . . . Legs . | . . . . . . Wheels 34 | 28 6 . . . . Hover . | . . . . . . Flight 1107 | . 192 163 201 403 148 Fastest Speed 26 | 50 32 29 29 26 29 Average Speed 31 | 85 34 29 29 27 29 Slowest Speed 115 | 100 115 29 29 29 29 Overloaded Moves . | . . . . . . Propulsion Burnouts . | . . . . . . Robots Hopped 5 | . . . 1 2 2 Cave-ins Triggered . | . . . . . . Exploration Rate (%) 31 | 3 48 24 44 37 34 Regions Visited 5 Branch Regions 2 Pre-discovered Areas . | . . . . . . Known Exits Taken . | . . . . . . Unknown Exits Taken 5 | 1 1 1 1 1 . Scrap Searched 1 | . . . 1 . . Spaces Dug 1 | . . . . 1 . Terrain Destroyed 1 | . . . . 1 . Melee . | . . . . . . Projectile 1 | . . . . 1 . AOE . | . . . . . . Terrain Rammed . | . . . . . . Walls Destroyed . | . . . . . . Machines Disabled . | . . . . . . Actions | -11 -10 -9 -9 -8 -8 --------- Run | Yrd Mat Mat Min Mat Sto Total 1393 | 44 221 222 202 544 160 Wait 180 | . . 48 3 129 . Move 1136 | 36 198 162 198 398 144 Hop 5 | . . . 1 2 2 Pick Up 22 | 4 9 3 . 5 1 Fast Attach . | . . . . . . Attach 19 | 4 5 3 . 4 3 Detach 2 | . . . . 2 . Swap . | . . . . . . Drop 7 | . 2 1 . 3 1 Fire 20 | . 7 5 . 1 7 Melee 2 | . . . . . 2 Ram . | . . . . . . Kick . | . . . . . . Crush . | . . . . . . Escape Stasis . | . . . . . . Rewire . | . . . . . . Trap . | . . . . . . Miscellaneous . | . . . . . . Route ------- -11/Scrapyard -10/Materials (discovered 2 exits: *Mat / [*Min]) -9/Materials (discovered 3 exits: [*Mat] / [*Min x2]) -9/Mines -8/Materials -8/Storage History --------- Turn | Location | Event 24 | -11/Scrapyard | Discovered new exit (range 12) 40 | -11/Scrapyard | Entered Materials 100 | -10/Materials | Discovered new exit (range 12) 127 | -10/Materials | Discovered new exit (range 8) 138 | -10/Materials | Entered another Materials area 138 | -9/Materials | Evolved 2 slots: Propulsion x1, Utility x1 175 | -9/Materials | Discovered new exit (range 16) 178 | -9/Materials | Discovered new exit (range 16) 245 | -9/Materials | Discovered new exit (range 7) 250 | -9/Materials | Entered Mines 304 | -9/Mines | Discovered new exit (range 5) 312 | -9/Mines | Entered Materials 312 | -8/Materials | Evolved 2 slots: Propulsion x1, Utility x1 350 | -8/Materials | Build established: Sprinter 457 | -8/Materials | Discovered new exit (range 16) 566 | -8/Materials | Entered Storage 631 | -8/Storage | Self-destructed Last Messages --------------- do not fire together with ranged weapons in the same volley. 00612_ O-16 Technician: "IFF HANDSHAKE FAILED. SECURING TERMINAL." 00613_ Mining Laser destroyed. 00613_ Component Storage disabled. 00614_ Jacked Y-45 Defender... Right-click on available options for more info. Keyboard players can use Shift-a~z. >>parse_system Reading system data... 00616_ O-16 Technician uses terminal to summon reinforcements. 00616_ ALERT: Hostiles spotted, dispatching reinforcements to Terminal S010. 00616_ O-16 Technician locks terminal. 00619_ Datajack destroyed. 00621_ Y-45 Defender destroyed. 00623_ Com. Battery destroyed. 00625_ ECM Suite destroyed. Map ----- +----------------------------------------------------+ | "?????+????# ##+######??????????????????? | | ???????????# ## #??????????????????? | | ???????????+ ## """ #??????????????????? | | ???????????# ##### ## "R #??????????????????? | | ???????????# ?????# ## """ #??????????????????? | | ?????????? / #??????#+## #??????????????????? | | ????????? #???????????# #??????????????????? | | ?????????#?????????????# #??????????????????? | | ???????????????????????# != #??????????????????? | | ???????????????????????#! =! ##?????????????????? | | ???????????????"""?"""?# #?????????????????? | | ???????????????"""?"""?# ##?????????????????? | | ???????????????"""?"""?# #??????????????????? | | ???????????????????????# #???????###########? | | ??????????????#+#########/#########+### """ """ #? | | ??????????" # """ """ ## | | ??????????" + """ """ "" | | ?????????????##+#########/########### # T" | | ??????????????????????# #???# # "" | | ??????????????????????# T???# # ## | | ??????????????????????#o""" """ #???# # #? | | ??????????????????????# """ """ ##### # #? | | ?????????????"????????# """ """ + ##"T"#### #? | | ?????????????T????????# """ """ ############???##? | | ?????????????"????????# " "g""" #????????????????? | | ??????????????????????#[Y@g g #????????????????? | | ??????????????????????##%##T#####????????????????? | | ???????????????????????##?###????????????????????? | | | | | | | | | | | | | | | | | | | | | | | | | | | | | | | | | | | | | | | | | | | | | +----------------------------------------------------+ Best States ------------- Heat Dissipation 31 Energy Generation 10 Energy Capacity 450 Matter Stores 280 Matter Capacity 300 Sight Range 16 Terrain Scan Density 10 ECM Strength 2 Evasion (%) 64 Targeting Accuracy 8 Item Schematics ----------------- None Robot Schematics ------------------ None Fabricated ------------ Nothing Alien Tech Used ----------------- None Achievements -------------- None Challenges ------------ None Game ------ Seed SwordHelicalSaw Manual? 0 Play Time 00:17:18 Cumulative 3.5 hours Start 2024.04.06 @ 14:51:40 End 2024.04.06 @ 15:07:09 Sessions 1 Manual Loads 0 Difficulty Rogue Special Mode None Game No. 5 Rogue 2 Adventurer 3 Explorer 0 Win Type - Total 0 Types 0/0/0/0/0/0/0/0/0 Lore% 3 Gallery% 17 Achievement% 14 Wizard Run 0 Options --------- Layout 1 ASCII 0 Keyboard 0 Movement Mouse Keybinds 0 Fullscreen 1 Font 32/SmallcapsGlow Map View 50x35 Zoom Use 0% Tactical HUD 1 Map Filters NONE Filters NONE Steam 1 RUN: 8bc28602-1f8f-4f16-81da-2b3cc174bcf1